[Event "*** SCC Grand Prix: Titled Tuesday Blitz"]
[Site "Chess.com"]
[Date "2020.06.02"]
[Round "7"]
[White "rubhani"]
[Black "A-Fier"]
[Result "1/2-1/2"]
[WhiteElo "2580"]
[BlackElo "2732"]
[TimeControl "180+1"]
[EndTime "11:21:05 PDT"]
[Termination "Game drawn - insufficient material"]

1. e4 {[%clk 0:03:00.6]} 1... c5 {[%clk 0:03:00.5]} 2. Nf3 {[%clk 0:03:00.2]}
2... Nc6 {[%clk 0:03:01.1]} 3. d4 {[%clk 0:03:00.4]} 3... cxd4 {[%clk 0:03:02]}
4. Nxd4 {[%clk 0:03:01.3]} 4... Nf6 {[%clk 0:03:02.6]} 5. Nc3 {[%clk 0:03:01.2]}
5... d6 {[%clk 0:03:03.3]} 6. Bg5 {[%clk 0:03:00.8]} 6... Qb6 {[%clk 0:03:03.8]}
7. Nb3 {[%clk 0:02:56.9]} 7... e6 {[%clk 0:03:02.8]} 8. Qd2 {[%clk 0:02:56.1]}
8... Be7 {[%clk 0:03:00.8]} 9. O-O-O {[%clk 0:02:55.6]} 9... a6 {[%clk
0:03:01.2]} 10. f3 {[%clk 0:02:55.8]} 10... O-O {[%clk 0:03:00.6]} 11. g4 {[%clk
0:02:51.7]} 11... Qc7 {[%clk 0:02:59.7]} 12. Be3 {[%clk 0:02:50.3]} 12... b5
{[%clk 0:02:59.3]} 13. g5 {[%clk 0:02:50.6]} 13... Nd7 {[%clk 0:02:59.5]} 14. h4
{[%clk 0:02:50.1]} 14... Nce5 {[%clk 0:02:57.6]} 15. f4 {[%clk 0:02:46.4]} 15...
Nc4 {[%clk 0:02:53.7]} 16. Bxc4 {[%clk 0:02:46.3]} 16... Qxc4 {[%clk 0:02:54.6]}
17. Qg2 {[%clk 0:02:03.1]} 17... b4 {[%clk 0:02:53.4]} 18. Rd4 {[%clk
0:02:02.6]} 18... Qc7 {[%clk 0:02:51]} 19. Rxb4 {[%clk 0:01:59.9]} 19... d5
{[%clk 0:02:41.1]} 20. Rd4 {[%clk 0:01:58.5]} 20... dxe4 {[%clk 0:02:41.6]} 21.
Rhd1 {[%clk 0:01:43.2]} 21... Nc5 {[%clk 0:02:40.5]} 22. Rc4 {[%clk 0:01:28.5]}
22... Nxb3+ {[%clk 0:02:39.2]} 23. axb3 {[%clk 0:01:29.4]} 23... Qb8 {[%clk
0:02:35.1]} 24. Qxe4 {[%clk 0:01:27.7]} 24... Bb7 {[%clk 0:02:34.3]} 25. Qe5
{[%clk 0:01:21]} 25... Qxe5 {[%clk 0:02:31.9]} 26. fxe5 {[%clk 0:01:20.7]} 26...
Bf3 {[%clk 0:02:13.1]} 27. Rd7 {[%clk 0:01:20.4]} 27... Bd8 {[%clk 0:02:12.2]}
28. Bc5 {[%clk 0:01:09.3]} 28... Re8 {[%clk 0:02:11.7]} 29. Rf4 {[%clk
0:01:08.3]} 29... Bh5 {[%clk 0:02:08.1]} 30. Ne4 {[%clk 0:01:08.3]} 30... Bg6
{[%clk 0:01:58.7]} 31. b4 {[%clk 0:00:59.9]} 31... Rb8 {[%clk 0:01:50.4]} 32. c3
{[%clk 0:00:55.2]} 32... a5 {[%clk 0:01:50.6]} 33. bxa5 {[%clk 0:00:53.3]} 33...
Bxa5 {[%clk 0:01:50.4]} 34. Nd6 {[%clk 0:00:51.5]} 34... Red8 {[%clk 0:01:46.7]}
35. Rxd8+ {[%clk 0:00:51.1]} 35... Bxd8 {[%clk 0:01:46]} 36. b4 {[%clk
0:00:51.2]} 36... Bc7 {[%clk 0:01:39.9]} 37. c4 {[%clk 0:00:47]} 37... Bd3
{[%clk 0:01:37.5]} 38. Kd2 {[%clk 0:00:46.3]} 38... Bg6 {[%clk 0:01:36.9]} 39.
Kc3 {[%clk 0:00:46.4]} 39... h6 {[%clk 0:01:37.3]} 40. gxh6 {[%clk 0:00:46.1]}
40... gxh6 {[%clk 0:01:38.2]} 41. b5 {[%clk 0:00:45.9]} 41... Ra8 {[%clk
0:01:35.7]} 42. b6 {[%clk 0:00:44.4]} 42... Bb8 {[%clk 0:01:36]} 43. Nb5 {[%clk
0:00:42.3]} 43... Bxe5+ {[%clk 0:01:34.9]} 44. Rd4 {[%clk 0:00:41.9]} 44...
Bxd4+ {[%clk 0:01:23.2]} 45. Kxd4 {[%clk 0:00:41.8]} 45... Rd8+ {[%clk
0:01:22.5]} 46. Bd6 {[%clk 0:00:39.3]} 46... Bh5 {[%clk 0:01:20.9]} 47. b7
{[%clk 0:00:36.8]} 47... f6 {[%clk 0:01:19.3]} 48. b8=Q {[%clk 0:00:33.8]} 48...
Rxb8 {[%clk 0:01:19.9]} 49. Bxb8 {[%clk 0:00:34.7]} 49... Bf3 {[%clk 0:01:19.6]}
50. c5 {[%clk 0:00:33.6]} 50... Kf7 {[%clk 0:01:19.9]} 51. Bd6 {[%clk
0:00:32.4]} 51... e5+ {[%clk 0:01:18.2]} 52. Ke3 {[%clk 0:00:31.6]} 52... Bh1
{[%clk 0:01:18.8]} 53. Nc7 {[%clk 0:00:30.6]} 53... Kg6 {[%clk 0:01:17.7]} 54.
Ne6 {[%clk 0:00:26.6]} 54... Kf7 {[%clk 0:01:12.1]} 55. Nc7 {[%clk 0:00:24.3]}
55... Kg6 {[%clk 0:01:12.1]} 56. Nb5 {[%clk 0:00:24.2]} 56... Kh5 {[%clk
0:01:11.3]} 57. Na7 {[%clk 0:00:19.9]} 57... Kxh4 {[%clk 0:01:09.4]} 58. c6
{[%clk 0:00:20.4]} 58... Kg5 {[%clk 0:01:09.5]} 59. c7 {[%clk 0:00:20.6]} 59...
Bb7 {[%clk 0:01:09.1]} 60. c8=Q {[%clk 0:00:20.9]} 60... Bxc8 {[%clk 0:01:09.4]}
61. Nxc8 {[%clk 0:00:21.8]} 61... Kf5 {[%clk 0:01:09.8]} 62. Bc7 {[%clk
0:00:20.9]} 62... h5 {[%clk 0:01:10.1]} 63. Ne7+ {[%clk 0:00:20.7]} 63... Kg4
{[%clk 0:01:10.4]} 64. Kf2 {[%clk 0:00:18.7]} 64... h4 {[%clk 0:01:09.9]} 65.
Nd5 {[%clk 0:00:18.9]} 65... Kf5 {[%clk 0:01:07.9]} 66. Bd8 {[%clk 0:00:19.1]}
66... e4 {[%clk 0:01:07]} 67. Nxf6 {[%clk 0:00:17.6]} 67... h3 {[%clk
0:01:07.9]} 68. Nh5 {[%clk 0:00:16.7]} 68... Kg4 {[%clk 0:01:07.3]} 69. Ng3
{[%clk 0:00:16.7]} 69... e3+ {[%clk 0:01:06.8]} 70. Kxe3 {[%clk 0:00:14.6]}
70... Kxg3 {[%clk 0:01:07.7]} 71. Bc7+ {[%clk 0:00:15.4]} 71... Kg2 {[%clk
0:01:08.2]} 72. Bb8 {[%clk 0:00:15.7]} 72... h2 {[%clk 0:01:08.9]} 73. Bxh2
{[%clk 0:00:16.3]} 1/2-1/2

[Event "*** SCC Grand Prix: Titled Tuesday Blitz"]
[Site "Chess.com"]
[Date "2020.06.02"]
[Round "7"]
[White "krasavetc"]
[Black "2008king"]
[Result "0-1"]
[WhiteElo "2226"]
[BlackElo "2123"]
[TimeControl "180+1"]
[EndTime "11:21:05 PDT"]
[Termination "2008king won by resignation"]

1. e4 {[%clk 0:03:00.9]} 1... e5 {[%clk 0:02:59.4]} 2. Nf3 {[%clk 0:02:59.8]}
2... Nc6 {[%clk 0:02:58.9]} 3. Bc4 {[%clk 0:02:59.7]} 3... Bc5 {[%clk
0:02:58.2]} 4. d4 {[%clk 0:02:59]} 4... Bxd4 {[%clk 0:02:57.5]} 5. c3 {[%clk
0:02:58.6]} 5... Bc5 {[%clk 0:02:56.9]} 6. b4 {[%clk 0:02:55]} 6... Bb6 {[%clk
0:02:56.1]} 7. b5 {[%clk 0:02:43.3]} 7... Nce7 {[%clk 0:02:46.6]} 8. Nxe5 {[%clk
0:02:39.6]} 8... d5 {[%clk 0:02:46.5]} 9. exd5 {[%clk 0:02:38.2]} 9... Nf6
{[%clk 0:02:46.6]} 10. d6 {[%clk 0:02:37]} 10... Qxd6 {[%clk 0:02:42.8]} 11.
Qxd6 {[%clk 0:02:33.8]} 11... cxd6 {[%clk 0:02:43.7]} 12. Nxf7 {[%clk
0:02:34.7]} 12... Rf8 {[%clk 0:02:42]} 13. Nxd6+ {[%clk 0:02:33.7]} 13... Kd7
{[%clk 0:02:42]} 14. Nxc8 {[%clk 0:02:34.6]} 14... Raxc8 {[%clk 0:02:41.4]} 15.
Bb3 {[%clk 0:02:31.3]} 15... Ne4 {[%clk 0:02:39.9]} 16. f3 {[%clk 0:02:29.1]}
16... Nf2 {[%clk 0:02:37]} 17. Rf1 {[%clk 0:02:22.6]} 17... Nd3+ {[%clk
0:02:32.2]} 18. Kd2 {[%clk 0:02:21]} 18... Nxc1 {[%clk 0:02:31.2]} 19. Kxc1
{[%clk 0:02:20.2]} 19... Be3+ {[%clk 0:02:29.8]} 20. Kb2 {[%clk 0:02:19.2]}
20... Rfd8 {[%clk 0:02:30.1]} 21. Rd1+ {[%clk 0:02:18.5]} 21... Ke8 {[%clk
0:02:29.4]} 22. Na3 {[%clk 0:02:18.2]} 22... a6 {[%clk 0:01:57.8]} 23. Nc4
{[%clk 0:02:11.8]} 23... Nf5 {[%clk 0:01:50.4]} 24. Rd7 {[%clk 0:02:05.8]} 24...
Rxd7 {[%clk 0:01:46]} 25. Re1 {[%clk 0:02:03.8]} 25... Re7 {[%clk 0:01:41.2]}
26. g4 {[%clk 0:02:03]} 26... Nh4 {[%clk 0:01:36.1]} 27. Nd6+ {[%clk 0:01:56.2]}
27... Kd8 {[%clk 0:01:33.8]} 28. Nxc8 {[%clk 0:01:34.8]} 28... Kxc8 {[%clk
0:01:34.7]} 29. bxa6 {[%clk 0:01:34.9]} 29... bxa6 {[%clk 0:01:29.7]} 30. f4
{[%clk 0:01:33]} 30... Bc5 {[%clk 0:01:26.4]} 31. Rxe7 {[%clk 0:01:26.6]} 31...
Bxe7 {[%clk 0:01:27.3]} 32. Bc4 {[%clk 0:01:26.8]} 32... Kb7 {[%clk 0:01:26.2]}
33. Bd5+ {[%clk 0:01:25.7]} 33... Kb6 {[%clk 0:01:25]} 34. Be4 {[%clk
0:01:25.7]} 34... Ng6 {[%clk 0:01:16.2]} 35. Kb3 {[%clk 0:01:14.8]} 35... Nxf4
{[%clk 0:01:14.5]} 36. Bxh7 {[%clk 0:01:14.1]} 36... Nd5 {[%clk 0:00:59.6]} 37.
Kc4 {[%clk 0:01:05.3]} 37... Ne3+ {[%clk 0:00:56.2]} 38. Kd4 {[%clk 0:01:02.7]}
38... Nxg4 {[%clk 0:00:57.1]} 39. h3 {[%clk 0:01:01.7]} 39... Nf6 {[%clk
0:00:53.2]} 40. Bd3 {[%clk 0:01:00.8]} 40... Bd6 {[%clk 0:00:41.3]} 41. h4
{[%clk 0:00:51.6]} 41... a5 {[%clk 0:00:40.4]} 42. Bg6 {[%clk 0:00:47.4]} 42...
Kc6 {[%clk 0:00:38.7]} 43. h5 {[%clk 0:00:45.6]} 43... Ng8 {[%clk 0:00:29]} 44.
Be8+ {[%clk 0:00:43.3]} 44... Kc7 {[%clk 0:00:26.9]} 45. Bf7 {[%clk 0:00:41.4]}
45... Ne7 {[%clk 0:00:21.1]} 46. Kc4 {[%clk 0:00:34.8]} 46... Kb6 {[%clk
0:00:20.2]} 47. a4 {[%clk 0:00:33.3]} 47... Nf5 {[%clk 0:00:18.9]} 48. Kd5
{[%clk 0:00:31.6]} 48... Bc5 {[%clk 0:00:19.3]} 49. Be8 {[%clk 0:00:27.2]} 49...
Ne7+ {[%clk 0:00:18.7]} 50. Ke6 {[%clk 0:00:26]} 50... Nc6 {[%clk 0:00:16.1]}
51. Kf7 {[%clk 0:00:20.7]} 51... Ba3 {[%clk 0:00:15.4]} 52. Kxg7 {[%clk
0:00:20.4]} 52... Bb2 {[%clk 0:00:15.9]} 53. Kg6 {[%clk 0:00:20]} 53... Bxc3
{[%clk 0:00:16]} 54. h6 {[%clk 0:00:20.1]} 54... Ne7+ {[%clk 0:00:14.3]} 55. Kf7
{[%clk 0:00:20.3]} 55... Nf5 {[%clk 0:00:13.8]} 56. h7 {[%clk 0:00:20.4]} 56...
Nd6+ {[%clk 0:00:14.4]} 57. Ke7 {[%clk 0:00:18.9]} 57... Nxe8 {[%clk 0:00:15.3]}
58. Kxe8 {[%clk 0:00:19.8]} 58... Kc5 {[%clk 0:00:15.8]} 59. Kd7 {[%clk
0:00:17.2]} 59... Kb4 {[%clk 0:00:16]} 60. Ke6 {[%clk 0:00:18.1]} 60... Kxa4
{[%clk 0:00:15.7]} 61. Kd5 {[%clk 0:00:19]} 61... Kb3 {[%clk 0:00:16.1]} 62. Ke6
{[%clk 0:00:18.9]} 62... a4 {[%clk 0:00:16.4]} 63. Kf7 {[%clk 0:00:19.8]} 63...
a3 {[%clk 0:00:16.8]} 64. Kg8 {[%clk 0:00:18.3]} 64... a2 {[%clk 0:00:16.7]} 65.
h8=Q {[%clk 0:00:19.2]} 65... Bxh8 {[%clk 0:00:16.4]} 66. Kxh8 {[%clk
0:00:20.1]} 66... a1=Q+ {[%clk 0:00:16.8]} 0-1

[Event "*** SCC Grand Prix: Titled Tuesday Blitz"]
[Site "Chess.com"]
[Date "2020.06.02"]
[Round "7"]
[White "Lestofante90"]
[Black "Salem-AR"]
[Result "1-0"]
[WhiteElo "2816"]
[BlackElo "3024"]
[TimeControl "180+1"]
[EndTime "11:21:06 PDT"]
[Termination "Lestofante90 won on time"]

1. e4 {[%clk 0:03:00.9]} 1... c5 {[%clk 0:02:59.9]} 2. Nf3 {[%clk 0:03:00.7]}
2... Nc6 {[%clk 0:03:00.2]} 3. d4 {[%clk 0:03:01]} 3... cxd4 {[%clk 0:03:01.1]}
4. Nxd4 {[%clk 0:03:01.5]} 4... Nf6 {[%clk 0:03:02]} 5. Nc3 {[%clk 0:03:02]}
5... e5 {[%clk 0:03:02.8]} 6. Ndb5 {[%clk 0:03:02.5]} 6... d6 {[%clk 0:03:03.6]}
7. Bg5 {[%clk 0:03:02.4]} 7... a6 {[%clk 0:03:04.3]} 8. Na3 {[%clk 0:03:02.7]}
8... b5 {[%clk 0:03:05]} 9. Nd5 {[%clk 0:03:02.9]} 9... Be7 {[%clk 0:03:05.7]}
10. Bxf6 {[%clk 0:03:03.4]} 10... Bxf6 {[%clk 0:03:06.5]} 11. c3 {[%clk
0:03:04]} 11... Bg5 {[%clk 0:03:06.7]} 12. Nc2 {[%clk 0:03:02.6]} 12... Ne7
{[%clk 0:03:07.3]} 13. a4 {[%clk 0:02:44.2]} 13... bxa4 {[%clk 0:03:08.2]} 14.
Rxa4 {[%clk 0:02:37.1]} 14... Nxd5 {[%clk 0:03:06.9]} 15. Qxd5 {[%clk
0:02:36.8]} 15... Be6 {[%clk 0:03:07.5]} 16. Qd3 {[%clk 0:02:25.9]} 16... a5
{[%clk 0:02:52.2]} 17. Be2 {[%clk 0:02:20.3]} 17... O-O {[%clk 0:02:49.7]} 18.
O-O {[%clk 0:02:18.5]} 18... Qb6 {[%clk 0:02:41.8]} 19. b4 {[%clk 0:02:16.1]}
19... axb4 {[%clk 0:02:39.3]} 20. Rxa8 {[%clk 0:02:14.6]} 20... Rxa8 {[%clk
0:02:40.2]} 21. Nxb4 {[%clk 0:02:15.1]} 21... g6 {[%clk 0:02:30.9]} 22. Rd1
{[%clk 0:02:13.3]} 22... Ra3 {[%clk 0:02:05.8]} 23. g3 {[%clk 0:02:10.2]} 23...
Kg7 {[%clk 0:01:46.6]} 24. h4 {[%clk 0:02:07.9]} 24... Be7 {[%clk 0:01:42.3]}
25. Nd5 {[%clk 0:02:04.6]} 25... Bxd5 {[%clk 0:01:41.5]} 26. Qxd5 {[%clk
0:02:03.5]} 26... Rxc3 {[%clk 0:01:40.8]} 27. Kg2 {[%clk 0:02:00.6]} 27... Rc2
{[%clk 0:01:35.9]} 28. Rd2 {[%clk 0:01:57.2]} 28... Rc5 {[%clk 0:01:27.4]} 29.
Qa8 {[%clk 0:01:38.1]} 29... Ra5 {[%clk 0:01:06.4]} 30. Qc8 {[%clk 0:01:37.6]}
30... Qb4 {[%clk 0:01:03.7]} 31. Qc2 {[%clk 0:01:37.4]} 31... Rc5 {[%clk
0:00:56.8]} 32. Qd3 {[%clk 0:01:36.9]} 32... Rc3 {[%clk 0:00:50]} 33. Qd5 {[%clk
0:01:36.9]} 33... Rc5 {[%clk 0:00:50.5]} 34. Qd3 {[%clk 0:01:36.3]} 34... d5
{[%clk 0:00:49.6]} 35. exd5 {[%clk 0:01:31.8]} 35... Bd6 {[%clk 0:00:49.7]} 36.
Rc2 {[%clk 0:01:22]} 36... e4 {[%clk 0:00:47.4]} 37. Qd1 {[%clk 0:01:18.7]}
37... Rxc2 {[%clk 0:00:42.4]} 38. Qxc2 {[%clk 0:01:19.6]} 38... Qd4 {[%clk
0:00:41]} 39. Qc4 {[%clk 0:00:58.3]} 39... Qe5 {[%clk 0:00:40.8]} 40. Qb3 {[%clk
0:00:46.4]} 40... h6 {[%clk 0:00:38.9]} 41. Bg4 {[%clk 0:00:38.4]} 41... f5
{[%clk 0:00:32.8]} 42. Be2 {[%clk 0:00:38.6]} 42... g5 {[%clk 0:00:11.2]} 43.
hxg5 {[%clk 0:00:38.3]} 43... hxg5 {[%clk 0:00:11.3]} 44. Qb7+ {[%clk
0:00:38.7]} 44... Kg6 {[%clk 0:00:09.5]} 45. Bh5+ {[%clk 0:00:33.6]} 45... Kh6
{[%clk 0:00:09.2]} 46. Qf7 {[%clk 0:00:33.8]} 46... Qg7 {[%clk 0:00:06]} 47.
Qxf5 {[%clk 0:00:18.5]} 47... Kxh5 {[%clk 0:00:04]} 48. Qxe4 {[%clk 0:00:16.9]}
48... Qf6 {[%clk 0:00:03.8]} 49. Qh7+ {[%clk 0:00:15.9]} 1-0

[Event "*** SCC Grand Prix: Titled Tuesday Blitz"]
[Site "Chess.com"]
[Date "2020.06.02"]
[Round "7"]
[White "DivyaDeshmukh23"]
[Black "Lion-Al-Messi"]
[Result "1-0"]
[WhiteElo "2479"]
[BlackElo "2355"]
[TimeControl "180+1"]
[EndTime "11:21:06 PDT"]
[Termination "DivyaDeshmukh23 won on time"]

1. e4 {[%clk 0:03:00.9]} 1... e6 {[%clk 0:02:59.9]} 2. d4 {[%clk 0:03:00.3]}
2... d5 {[%clk 0:03:00.8]} 3. Nd2 {[%clk 0:03:00.3]} 3... c5 {[%clk 0:02:59.7]}
4. Ngf3 {[%clk 0:02:59.9]} 4... cxd4 {[%clk 0:02:59]} 5. exd5 {[%clk 0:02:58]}
5... Qxd5 {[%clk 0:02:59.9]} 6. Bc4 {[%clk 0:02:58.2]} 6... Qd6 {[%clk
0:02:58.6]} 7. O-O {[%clk 0:02:58.6]} 7... Nf6 {[%clk 0:02:58.8]} 8. Nb3 {[%clk
0:02:57.5]} 8... Nc6 {[%clk 0:02:59.3]} 9. Nbxd4 {[%clk 0:02:54.5]} 9... Nxd4
{[%clk 0:03:00.2]} 10. Nxd4 {[%clk 0:02:54.6]} 10... Be7 {[%clk 0:03:01.1]} 11.
Nb5 {[%clk 0:02:34.6]} 11... Qxd1 {[%clk 0:03:00.2]} 12. Rxd1 {[%clk 0:02:35.5]}
12... O-O {[%clk 0:03:01.1]} 13. Bf4 {[%clk 0:02:33.3]} 13... Bd7 {[%clk
0:03:00.3]} 14. Nc3 {[%clk 0:02:28]} 14... Rac8 {[%clk 0:02:59.7]} 15. Bb3
{[%clk 0:02:28.2]} 15... Bc6 {[%clk 0:02:59.6]} 16. Be3 {[%clk 0:02:22.6]} 16...
b6 {[%clk 0:02:52.5]} 17. a4 {[%clk 0:02:20.1]} 17... Bb4 {[%clk 0:02:51.4]} 18.
Bd4 {[%clk 0:02:09.5]} 18... Rfd8 {[%clk 0:02:49.9]} 19. Nb5 {[%clk 0:02:00.5]}
19... a6 {[%clk 0:02:35.3]} 20. Na7 {[%clk 0:01:55.7]} 20... Rc7 {[%clk
0:02:14.6]} 21. Bxb6 {[%clk 0:01:41.1]} 21... Rxd1+ {[%clk 0:02:10]} 22. Rxd1
{[%clk 0:01:42]} 22... Rd7 {[%clk 0:02:10.7]} 23. Rxd7 {[%clk 0:01:32]} 23...
Bxd7 {[%clk 0:02:11.6]} 24. Bc4 {[%clk 0:01:22.6]} 24... Nd5 {[%clk 0:02:08.7]}
25. Bd4 {[%clk 0:01:17.8]} 25... Nc7 {[%clk 0:01:31.6]} 26. c3 {[%clk
0:01:05.5]} 26... Bd6 {[%clk 0:01:27.2]} 27. a5 {[%clk 0:01:04.8]} 27... Kf8
{[%clk 0:01:11.8]} 28. Bb6 {[%clk 0:00:56.8]} 28... Ke7 {[%clk 0:01:11.1]} 29.
b4 {[%clk 0:00:40.8]} 29... Nb5 {[%clk 0:01:10.5]} 30. Nxb5 {[%clk 0:00:27.6]}
30... axb5 {[%clk 0:01:11.4]} 31. Bd3 {[%clk 0:00:22.9]} 31... Be5 {[%clk
0:01:08.5]} 32. Be4 {[%clk 0:00:22.9]} 32... Bc8 {[%clk 0:01:07]} 33. Bc6 {[%clk
0:00:17.6]} 33... Ba6 {[%clk 0:00:47.1]} 34. c4 {[%clk 0:00:17.7]} 34... bxc4
{[%clk 0:00:22.4]} 35. b5 {[%clk 0:00:16.3]} 35... Kd6 {[%clk 0:00:13.7]} 36.
Kf1 {[%clk 0:00:15.4]} 36... Bc8 {[%clk 0:00:10.9]} 37. Ke2 {[%clk 0:00:12.2]}
37... f5 {[%clk 0:00:04.5]} 38. Ba7 {[%clk 0:00:07.1]} 38... Bd7 {[%clk
0:00:03.1]} 39. Bb8+ {[%clk 0:00:06.8]} 39... Kc5 {[%clk 0:00:02]} 40. Bxe5
{[%clk 0:00:06.9]} 40... Bxc6 {[%clk 0:00:02.1]} 41. bxc6 {[%clk 0:00:07.8]}
41... Kxc6 {[%clk 0:00:02.3]} 42. Kd2 {[%clk 0:00:08.2]} 42... Kb5 {[%clk
0:00:02]} 43. Bc3 {[%clk 0:00:08.4]} 43... g5 {[%clk 0:00:02]} 44. Ke3 {[%clk
0:00:08.6]} 44... h5 {[%clk 0:00:01.9]} 45. Kd4 {[%clk 0:00:08.7]} 45... f4
{[%clk 0:00:01.1]} 46. Ke5 {[%clk 0:00:07.9]} 1-0

[Event "*** SCC Grand Prix: Titled Tuesday Blitz"]
[Site "Chess.com"]
[Date "2020.06.02"]
[Round "7"]
[White "elohunter1999"]
[Black "Djager97"]
[Result "1-0"]
[WhiteElo "2513"]
[BlackElo "2375"]
[TimeControl "180+1"]
[EndTime "11:21:07 PDT"]
[Termination "elohunter1999 won on time"]

1. e4 {[%clk 0:03:00.9]} 1... e5 {[%clk 0:02:59.5]} 2. Nf3 {[%clk 0:03:00.8]}
2... Nc6 {[%clk 0:02:59.7]} 3. Bb5 {[%clk 0:03:01.3]} 3... a6 {[%clk 0:02:59.3]}
4. Ba4 {[%clk 0:03:01.8]} 4... Nf6 {[%clk 0:02:59.3]} 5. O-O {[%clk 0:03:02.3]}
5... Be7 {[%clk 0:02:59.4]} 6. Re1 {[%clk 0:03:02.5]} 6... b5 {[%clk 0:02:52.6]}
7. Bb3 {[%clk 0:03:03]} 7... d6 {[%clk 0:02:53.2]} 8. c3 {[%clk 0:03:03]} 8...
O-O {[%clk 0:02:52.7]} 9. h3 {[%clk 0:03:03.6]} 9... Nb8 {[%clk 0:02:53.1]} 10.
d4 {[%clk 0:03:03.6]} 10... Nbd7 {[%clk 0:02:53.8]} 11. Nbd2 {[%clk 0:03:04]}
11... Bb7 {[%clk 0:02:54.3]} 12. Bc2 {[%clk 0:03:03.3]} 12... Re8 {[%clk
0:02:54.2]} 13. Nf1 {[%clk 0:03:03.6]} 13... Bf8 {[%clk 0:02:53.8]} 14. Ng3
{[%clk 0:03:04]} 14... g6 {[%clk 0:02:53.1]} 15. a4 {[%clk 0:03:01.7]} 15... Bg7
{[%clk 0:02:44.3]} 16. Bd3 {[%clk 0:03:01.2]} 16... exd4 {[%clk 0:02:37.4]} 17.
cxd4 {[%clk 0:03:00.5]} 17... c5 {[%clk 0:02:29.6]} 18. d5 {[%clk 0:02:50.3]}
18... c4 {[%clk 0:02:28.7]} 19. Bc2 {[%clk 0:02:50.2]} 19... Nc5 {[%clk
0:02:27.3]} 20. Nd4 {[%clk 0:02:48.5]} 20... Qb6 {[%clk 0:01:59.4]} 21. a5
{[%clk 0:02:40.6]} 21... Qc7 {[%clk 0:01:58.1]} 22. Bf4 {[%clk 0:02:38.4]} 22...
Nfd7 {[%clk 0:01:55]} 23. Qd2 {[%clk 0:02:29.7]} 23... Ne5 {[%clk 0:01:54.3]}
24. Bh6 {[%clk 0:02:23.5]} 24... Bh8 {[%clk 0:01:50.6]} 25. Be3 {[%clk
0:01:55.4]} 25... Ned3 {[%clk 0:01:50]} 26. Bxd3 {[%clk 0:01:55.3]} 26... Nxd3
{[%clk 0:01:50.5]} 27. Rf1 {[%clk 0:01:52]} 27... Nc5 {[%clk 0:01:35.1]} 28. f3
{[%clk 0:01:46.6]} 28... Re7 {[%clk 0:01:25.9]} 29. Rae1 {[%clk 0:01:44.4]}
29... Rae8 {[%clk 0:01:24.6]} 30. Bg5 {[%clk 0:01:41.9]} 30... Rd7 {[%clk
0:01:20.3]} 31. Nge2 {[%clk 0:01:33]} 31... Nd3 {[%clk 0:00:54.4]} 32. Rd1
{[%clk 0:01:32.6]} 32... Qc5 {[%clk 0:00:46.6]} 33. Be3 {[%clk 0:01:32.2]} 33...
Qb4 {[%clk 0:00:37.4]} 34. Qxb4 {[%clk 0:01:29.9]} 34... Nxb4 {[%clk 0:00:38.3]}
35. Nc3 {[%clk 0:01:28.3]} 35... f5 {[%clk 0:00:36.4]} 36. Ne6 {[%clk
0:01:13.3]} 36... Nd3 {[%clk 0:00:36.4]} 37. Rxd3 {[%clk 0:00:56]} 37... cxd3
{[%clk 0:00:36.2]} 38. Rd1 {[%clk 0:00:56.2]} 38... fxe4 {[%clk 0:00:32.3]} 39.
fxe4 {[%clk 0:00:57.1]} 39... Rde7 {[%clk 0:00:25.8]} 40. Rxd3 {[%clk
0:00:55.7]} 40... Bc8 {[%clk 0:00:26.1]} 41. Bg5 {[%clk 0:00:42.3]} 41... Rxe6
{[%clk 0:00:16.9]} 42. dxe6 {[%clk 0:00:42.3]} 42... Rxe6 {[%clk 0:00:17.8]} 43.
Nd5 {[%clk 0:00:38.8]} 43... Bb7 {[%clk 0:00:14.9]} 44. Nc7 {[%clk 0:00:20.1]}
44... Rxe4 {[%clk 0:00:08.7]} 45. Rxd6 {[%clk 0:00:20.2]} 45... Rd4 {[%clk
0:00:06.3]} 46. Rb6 {[%clk 0:00:15.9]} 46... Rd1+ {[%clk 0:00:05]} 47. Kf2
{[%clk 0:00:12.2]} 47... Bd4+ {[%clk 0:00:04.9]} 48. Ke2 {[%clk 0:00:11.7]}
48... Bxb6 {[%clk 0:00:05.1]} 49. axb6 {[%clk 0:00:12.1]} 49... Rb1 {[%clk
0:00:03.8]} 50. Bf6 {[%clk 0:00:12.1]} 50... Rg1 {[%clk 0:00:02.9]} 51. g4
{[%clk 0:00:11.5]} 51... Rg2+ {[%clk 0:00:01.5]} 52. Kf1 {[%clk 0:00:10.1]} 1-0